fUST/lending_fUST_20250724
["ID","MTS","AMOUNT","RATE_DAILY","PERIOD"]
[374502843,1753327846059,-460.0,0.00019726,2]
[374502844,1753327846068,-464.73117359,0.00019726,2]
[374502845,1753327846078,-460.0,0.00019726,2]
[374502846,1753327846087,-464.06747982,0.00019726,2]
[374502847,1753327846098,-464.33782278,0.00019726,2]
[374502848,1753327846107,-460.0,0.00019726,2]
[374502849,1753327846117,-460.0,0.00019726,2]
[374502850,1753327846126,-1580.76,0.00019726,2]
[374502851,1753327846136,-209.13458306,0.00019726,2]
[374502852,1753327846146,-460.0,0.00019726,2]
[374502853,1753327846155,-471.16641159,0.00019726,2]
[374502854,1753327846164,-463.89805704,0.00019726,2]
[374502855,1753327846174,-460.0,0.00019726,2]
[374502856,1753327846184,-402.09106565,0.00019726,2]
[374502857,1753327846209,-353.38893435,0.00019726,2]
[374502858,1753327846219,-460.0,0.00019726,2]
[374502859,1753327846230,-346.79244875,0.00019726,2]
[374502860,1753327846239,-13.41825848,0.00019726,2]
[374502861,1753327846370,-460.0,0.00019178,2]
[374502862,1753327846380,-446.58174152,0.00019726,2]
[374502863,1753327846390,-190.80857897,0.00019726,2]
[374502864,1753327846402,-269.19142103,0.00019726,2]
[374502865,1753327846411,-460.0,0.00019726,2]
[374502866,1753327846421,-460.0,0.00019726,2]
[374502867,1753327846431,-460.0,0.00019726,2]
[374502868,1753327846440,-598.27182059,0.00019726,2]
[374502869,1753327846449,-460.0,0.00019726,2]
[374502870,1753327846459,-460.0,0.00019726,2]
[374502871,1753327846468,-411.51801479,0.00019726,2]
[374502872,1753327846480,-48.48198521,0.00019726,2]
[374502873,1753327846489,-439.96639987,0.00019726,2]
[374502874,1753327846501,-20.03360013,0.00019726,2]
[374502875,1753327846511,-460.0,0.00019726,2]
[374502876,1753327846520,-24.26639987,0.00019726,2]
[374502877,1753327846682,-460.0,0.00019178,2]
[374502881,1753328049252,207.0,0.00026027,120]
[374502888,1753328557171,244.51048,0.00013699,2]
[374502890,1753328590401,1261.3003317,0.00018,2]
[374502892,1753328632884,208.0,0.00025999,120]
[374502936,1753328730131,-331.27572751,0.00018104,2]
[374502937,1753328737099,-27.87559749,0.00018104,2]
[374502938,1753328737119,-264.14561828,0.00018718,2]
[374502939,1753328737138,-174.58128922,0.00018793,2]
[374502940,1753328737157,-185.45987389,0.000188,2]
[374502941,1753328737175,-174.58128921,0.00018888,2]
[374502942,1753328737196,-353.0,0.000189,2]
[374502943,1753328737216,-150.0,0.000189,2]
[374502944,1753328737236,-174.58128921,0.00018983,2]
[374502945,1753328737261,-300.0,0.00019077,2]
[374502946,1753328737287,-70.69089318,0.00019077,2]
[374502947,1753328839086,-152.73495876,0.00018977,2]
[374502948,1753328841084,-21.84633045,0.00018977,2]
[374502949,1753328841106,-300.0,0.00019077,2]
[374502950,1753328841126,-682.87125362,0.00019077,2]
[374502951,1753328844116,-517.12874638,0.00019077,2]
[374502952,1753328844138,-380.00560231,0.00019078,2]
[374502990,1753329032840,-281.95768232,0.00018139,2]
[374502994,1753329032864,-24266.25910298,0.00018139,2]
[374502996,1753329032873,-464.20545421,0.0001874,2]
[374502998,1753329032883,-777.20863465,0.00019078,2]
[374503000,1753329032893,-729.6581967,0.00019078,2]
[374503002,1753329032904,-354.5843221,0.00019078,2]
[374503004,1753329032914,-1200.0,0.00019166,2]
[374503006,1753329032924,-263.0,0.00019167,2]
[374503008,1753329032934,-300.0,0.00019167,2]
[374503010,1753329032944,-1200.0,0.00019167,2]
[374503013,1753329032954,-574.05,0.00019168,3]
[374503015,1753329032964,-287.02,0.00019168,3]
[374503017,1753329032973,-861.11,0.00019168,3]
[374503019,1753329032983,-465.23158807,0.00019178,2]
[374503021,1753329032993,-239.75690095,0.00019178,2]
[374503023,1753329033003,-460.0,0.00019178,2]
[374503025,1753329033013,-514.51647882,0.00019178,2]
[374503027,1753329033025,-460.0,0.00019178,2]
[374503029,1753329033035,-462.45231138,0.00019178,2]
[374503031,1753329033046,-460.0,0.00019178,2]
[374503033,1753329033057,-208.04216607,0.00019178,2]
[374503035,1753329033069,-461.96010041,0.00019178,2]
[374503037,1753329033079,-460.0,0.00019178,2]
[374503039,1753329033089,-460.0,0.00019178,2]
[374503041,1753329033099,-460.0,0.00019178,2]
[374503043,1753329033110,-463.91113481,0.00019178,2]
[374503045,1753329033120,-460.0,0.00019178,2]
[374503047,1753329033130,-460.0,0.00019178,2]
[374503049,1753329033140,-460.0,0.00019178,2]
[374503051,1753329033150,-460.0,0.00019178,2]
[374503053,1753329033160,-460.0,0.00019178,2]
[374503055,1753329033170,-460.0,0.00019178,2]
[374503057,1753329033179,-460.0,0.00019178,2]
[374503059,1753329033189,-460.0,0.00019178,2]
[374503061,1753329033199,-460.0,0.00019178,2]
[374503063,1753329033209,-460.0,0.00019178,2]
[374503064,1753329033219,-342.61762603,0.00019178,2]
[374503065,1753329033229,-460.0,0.00019178,2]
[374503066,1753329033239,-460.0,0.00019178,2]
[374503067,1753329033249,-334.24306644,0.00019178,2]
[374503068,1753329033259,-464.92584472,0.00019178,2]
[374503069,1753329033269,-460.0,0.00019178,2]
[374503070,1753329033283,-460.0,0.00019178,2]
[374503071,1753329033294,-460.0,0.00019178,2]
[374503072,1753329033304,-460.0,0.00019178,2]
[374503073,1753329033315,-467.57859045,0.00019178,2]
[374503074,1753329033326,-460.0,0.00019178,2]
[374503075,1753329033336,-463.0116488,0.00019178,2]
[374503076,1753329033347,-460.0,0.00019178,2]
[374503077,1753329033358,-460.0,0.00019178,2]
[374503078,1753329033369,-467.89570033,0.00019178,2]
[374503079,1753329033380,-460.0,0.00019178,2]
[374503080,1753329033391,-460.0,0.00019178,2]
[374503081,1753329033403,-456.64740352,0.00019178,2]
[374503082,1753329033414,-460.0,0.00019178,2]
[374503083,1753329033424,-463.39559709,0.00019178,2]
[374503084,1753329033435,-460.0,0.00019178,2]
[374503085,1753329033446,-460.0,0.00019178,2]
[374503086,1753329033456,-460.0,0.00019178,2]
[374503087,1753329033471,-460.0,0.00019178,2]
[374503088,1753329033481,-460.0,0.00019178,2]
[374503089,1753329033491,-538.2637227,0.00019178,2]
[374503090,1753329033501,-461.24917933,0.00019178,2]
[374503091,1753329033511,-460.0,0.00019178,2]
[374503092,1753329033523,-460.0,0.00019178,2]
[374503093,1753329033533,-460.0,0.00019178,2]
[374503094,1753329033543,-464.16831374,0.00019178,2]
[374503096,1753329033552,-460.0,0.00019178,2]
[374503097,1753329033562,-461.398335,0.00019178,2]
[374503098,1753329033571,-575.29280045,0.00019178,2]
[374503099,1753329033581,-272.83749182,0.00019178,2]
[374503101,1753329033592,-460.0,0.00019178,2]
[374503103,1753329033602,-460.0,0.00019178,2]
[374503105,1753329033613,-460.0,0.00019178,2]
[374503108,1753329033624,-500.0,0.00019178,2]
[374503110,1753329033634,-461.15586237,0.00019178,2]
[374503111,1753329033643,-500.0,0.00019178,2]
[374503114,1753329033653,-500.0,0.00019178,2]
[374503115,1753329033663,-500.0,0.00019178,2]
[374503118,1753329033672,-500.0,0.00019178,2]
[374503120,1753329033682,-500.0,0.00019178,2]
[374503122,1753329033692,-500.0,0.00019178,2]
[374503124,1753329033701,-423.99743599,0.00019178,2]
[374503126,1753329033711,-460.0,0.00019178,2]
[374503128,1753329033721,-460.0,0.00019178,2]
[374503130,1753329033733,-460.0,0.00019178,2]
[374503132,1753329033743,-312.79932197,0.00019178,2]
[374503134,1753329033753,-460.0,0.00019178,2]
[374503136,1753329033762,-460.0,0.00019178,2]
[374503138,1753329033773,-460.0,0.00019178,2]
[374503140,1753329033783,-460.0,0.00019178,2]
[374503142,1753329033792,-460.0,0.00019178,2]
[374503144,1753329033802,-460.0,0.00019178,2]
[374503146,1753329033812,-460.0,0.00019178,2]
[374503147,1753329033822,-460.0,0.00019178,2]
[374503148,1753329033832,-460.0,0.00019178,2]
[374503149,1753329033841,-468.63511182,0.00019178,2]
[374503150,1753329033851,-463.40558608,0.00019178,2]
[374503151,1753329033861,-461.65546199,0.00019178,2]
[374503152,1753329033871,-460.0,0.00019178,2]
[374503153,1753329033881,-466.11001482,0.00019178,2]
[374503154,1753329033891,-462.92831164,0.00019178,2]
[374503155,1753329033901,-460.0,0.00019178,2]
[374503156,1753329033911,-460.0,0.00019178,2]
[374503157,1753329033921,-460.0,0.00019178,2]
[374503158,1753329033933,-460.0,0.00019178,2]
[374503159,1753329033943,-460.0,0.00019178,2]
[374503160,1753329033953,-460.0,0.00019178,2]
[374503161,1753329033963,-460.0,0.00019178,2]
[374503162,1753329033973,-460.0,0.00019178,2]
[374503163,1753329033983,-460.0,0.00019178,2]
[374503164,1753329033993,-460.0,0.00019178,2]
[374503165,1753329034003,-460.0,0.00019178,2]
[374503166,1753329034013,-460.0,0.00019178,2]
[374503167,1753329034025,-460.0,0.00019178,2]
[374503168,1753329034034,-462.2797578,0.00019178,2]
[374503169,1753329034044,-460.0,0.00019178,2]
[374503170,1753329034054,-460.0,0.00019178,2]
[374503171,1753329034064,-461.30669334,0.00019178,2]
[374503172,1753329034074,-460.0,0.00019178,2]
[374503173,1753329034084,-460.0,0.00019178,2]
[374503174,1753329034094,-460.0,0.00019178,2]
[374503175,1753329034103,-460.0,0.00019178,2]
[374503176,1753329034114,-460.0,0.00019178,2]
[374503177,1753329034123,-460.0,0.00019178,2]
[374503178,1753329034134,-460.0,0.00019178,2]
[374503179,1753329034144,-460.0,0.00019178,2]
[374503180,1753329034154,-460.0,0.00019178,2]
[374503181,1753329034164,-460.0,0.00019178,2]
[374503182,1753329034174,-460.0,0.00019178,2]
[374503183,1753329034183,-460.0,0.00019178,2]
[374503184,1753329034193,-726.76,0.00019178,2]
[374503185,1753329034203,-510.53047477,0.00019178,2]
[374503186,1753329034213,-460.0,0.00019178,2]
[374503187,1753329034222,-460.0,0.00019178,2]
[374503188,1753329034232,-460.0,0.00019178,2]
[374503189,1753329034242,-460.0,0.00019178,2]
[374503190,1753329034251,-460.40127637,0.00019178,2]
[374503191,1753329034261,-480.26113906,0.00019178,2]
[374503192,1753329034272,-460.0,0.00019178,2]
[374503193,1753329034283,-460.0,0.00019178,2]
[374503194,1753329034294,-466.8775047,0.00019178,2]
[374503195,1753329034304,-464.24661083,0.00019178,2]
[374503196,1753329034314,-460.0,0.00019178,2]
[374503197,1753329034324,-460.0,0.00019178,2]
[374503198,1753329034334,-460.0,0.00019178,2]
[374503199,1753329034344,-460.0,0.00019178,2]
[374503200,1753329034354,-460.0,0.00019178,2]
[374503201,1753329034365,-460.0,0.00019178,2]
[374503202,1753329034375,-460.0,0.00019178,2]
[374503203,1753329034385,-460.0,0.00019178,2]
[374503204,1753329034395,-460.0,0.00019178,2]
[374503205,1753329034404,-460.0,0.00019178,2]
[374503206,1753329034414,-460.0,0.00019178,2]
[374503207,1753329034424,-460.0,0.00019178,2]
[374503208,1753329034434,-460.0,0.00019178,2]
[374503209,1753329034444,-460.0,0.00019178,2]
[374503210,1753329034453,-467.11454924,0.00019178,2]
[374503211,1753329034463,-460.0,0.00019178,2]
[374503212,1753329034473,-163.52629931,0.00019178,2]
[374503213,1753329034482,-460.0,0.00019178,2]
[374503214,1753329034492,-460.0,0.00019178,2]
[374503215,1753329034502,-461.93340569,0.00019178,2]
[374503216,1753329034511,-460.0,0.00019178,2]
[374503217,1753329034523,-460.0,0.00019178,2]
[374503218,1753329034532,-460.0,0.00019178,2]
[374503219,1753329034542,-460.0,0.00019178,2]
[374503220,1753329034551,-463.80019973,0.00019178,2]
[374503221,1753329034561,-460.0,0.00019178,2]
[374503222,1753329034571,-460.0,0.00019178,2]
[374503223,1753329034580,-548.68092052,0.00019178,2]
[374503224,1753329034590,-460.95247467,0.00019178,2]
[374503225,1753329034600,-460.0,0.00019178,2]
[374503226,1753329034610,-460.0,0.00019178,2]
[374503227,1753329034620,-461.11822262,0.00019178,2]
[374503228,1753329034631,-460.0,0.00019178,2]
[374503229,1753329034640,-416.33919372,0.00019178,2]
[374503230,1753329034650,-462.3564401,0.00019178,2]
[374503231,1753329034659,-460.0,0.00019178,2]
[374503232,1753329034669,-460.0,0.00019178,2]
[374503233,1753329034679,-460.0,0.00019178,2]
[374503234,1753329034689,-461.8257664,0.00019178,2]
[374503235,1753329034698,-460.0,0.00019178,2]
[374503236,1753329034707,-460.0,0.00019178,2]
[374503237,1753329034717,-460.0,0.00019178,2]
[374503238,1753329034728,-463.41241818,0.00019178,2]
[374503239,1753329034737,-460.0,0.00019178,2]
[374503240,1753329034747,-460.0,0.00019178,2]
[374503241,1753329034757,-460.0,0.00019178,2]
[374503242,1753329034766,-460.0,0.00019178,2]
[374503243,1753329034776,-460.0,0.00019178,2]
[374503244,1753329034786,-460.0,0.00019178,2]
[374503245,1753329034796,-460.0,0.00019178,2]
[374503246,1753329034806,-460.0,0.00019178,2]
[374503247,1753329034826,-460.0,0.00019178,2]
[374503248,1753329034835,-461.9236966,0.00019178,2]
[374503249,1753329034855,-460.0,0.00019178,2]
[374503250,1753329034865,-460.0,0.00019178,2]
[374503253,1753329035044,-460.0,0.00019178,2]
[374503255,1753329035054,-599.65593453,0.00019178,2]
[374503257,1753329035064,-460.0,0.00019178,2]
[374503259,1753329035074,-460.0,0.00019178,2]
[374503261,1753329035083,-461.8000095,0.00019178,2]
[374503263,1753329035093,-460.0,0.00019178,2]
[374503265,1753329035102,-500.0,0.00019178,2]
[374503267,1753329035111,-500.0,0.00019178,2]
[374503269,1753329035121,-500.0,0.00019178,2]
[374503271,1753329035131,-500.0,0.00019178,2]
[374503273,1753329035140,-460.0,0.00019178,2]
[374503275,1753329035149,-460.0,0.00019178,2]
[374503277,1753329035158,-460.0,0.00019178,2]
[374503279,1753329035167,-460.0,0.00019178,2]
[374503281,1753329035177,-460.0,0.00019178,2]
[374503283,1753329035186,-460.0,0.00019178,2]
[374503285,1753329035195,-460.0,0.00019178,2]
[374503287,1753329035205,-460.0,0.00019178,2]
[374503289,1753329035215,-461.49204769,0.00019178,2]
[374503290,1753329035225,-460.0,0.00019178,2]
[374503292,1753329035235,-460.0,0.00019178,2]
[374503294,1753329035244,-460.0,0.00019178,2]
[374503297,1753329035254,-460.0,0.00019178,2]
[374503299,1753329035264,-463.04020801,0.00019178,2]
[374503300,1753329035275,-463.29545648,0.00019178,2]
[374503302,1753329035287,-461.08712612,0.00019178,2]
[374503304,1753329035297,-460.89287944,0.00019178,2]
[374503306,1753329035306,-460.0,0.00019178,2]
[374503308,1753329035316,-291.26490317,0.00019178,2]
[374503310,1753329035327,-460.0,0.00019178,2]
[374503312,1753329035336,-460.0,0.00019178,2]
[374503314,1753329035345,-460.0,0.00019178,2]
[374503317,1753329035355,-460.0,0.00019178,2]
[374503319,1753329035365,-464.35107728,0.00019178,2]
[374503321,1753329035374,-460.0,0.00019178,2]
[374503323,1753329035384,-460.0,0.00019178,2]
[374503324,1753329035394,-460.21140203,0.00019178,2]
[374503326,1753329035405,-460.0,0.00019178,2]
[374503328,1753329035415,-460.0,0.00019178,2]
[374503331,1753329035426,-460.0,0.00019178,2]
[374503333,1753329035435,-425.30214515,0.00019178,2]
[374503335,1753329035445,-460.0,0.00019178,2]
[374503337,1753329035455,-466.91612637,0.00019178,2]
[374503338,1753329035464,-462.4678689,0.00019178,2]
[374503341,1753329035474,-463.94729004,0.00019178,2]
[374503342,1753329035483,-460.0,0.00019178,2]
[374503345,1753329035492,-461.11446657,0.00019178,2]
[374503347,1753329035502,-460.0,0.00019178,2]
[374503349,1753329035512,-460.0,0.00019178,2]
[374503351,1753329035522,-460.0,0.00019178,2]
[374503352,1753329035532,-460.0,0.00019178,2]
[374503353,1753329035541,-431.97949643,0.00019178,2]
[374503354,1753329035551,-461.95293546,0.00019178,2]
[374503355,1753329035561,-460.0,0.00019178,2]
[374503356,1753329035570,-3129.69,0.00019178,2]
[374503357,1753329035584,-460.0,0.00019178,2]
[374503358,1753329035604,-462.7489231,0.00019178,2]
[374503359,1753329035618,-460.0,0.00019178,2]
[374503360,1753329035628,-460.0,0.00019178,2]
[374503362,1753329035638,-460.0,0.00019178,2]
[374503364,1753329035647,-249.94076708,0.00019178,2]
[374503366,1753329035657,-460.0,0.00019178,2]
[374503369,1753329035668,-779.16,0.00019178,2]
[374503370,1753329035678,-460.0,0.00019178,2]
[374503373,1753329035689,-460.0,0.00019178,2]
[374503375,1753329035701,-460.0,0.00019178,2]
[374503377,1753329035710,-460.69976876,0.00019178,2]
[374503379,1753329035719,-465.49738114,0.00019178,2]
[374503381,1753329035729,-460.0,0.00019178,2]
[374503383,1753329035739,-460.0,0.00019178,2]
[374503385,1753329035748,-462.17,0.00019178,2]
[374503386,1753329035757,-711.85,0.00019178,2]
[374503388,1753329035766,-460.0,0.00019178,2]
[374503390,1753329035776,-467.05,0.00019178,2]
[374503392,1753329035786,-460.0,0.00019178,2]
[374503394,1753329035795,-460.0,0.00019178,2]
[374503396,1753329035804,-460.0,0.00019178,2]
[374503398,1753329035814,-460.0,0.00019178,2]
[374503400,1753329035824,-465.94337024,0.00019178,2]
[374503402,1753329035834,-460.0,0.00019178,2]
[374503404,1753329035845,-460.0,0.00019178,2]
[374503406,1753329035855,-460.0,0.00019178,2]
[374503409,1753329035866,-460.0,0.00019178,2]
[374503410,1753329035876,-462.43312392,0.00019178,2]
[374503412,1753329035885,-460.0,0.00019178,2]
[374503414,1753329035895,-460.0,0.00019178,2]
[374503416,1753329035904,-460.0,0.00019178,2]
[374503418,1753329035914,-461.85110942,0.00019178,2]
[374503420,1753329035923,-460.0,0.00019178,2]
[374503422,1753329035933,-1895.47034616,0.00019178,2]
[374503426,1753329035959,-829.08965384,0.00019178,2]
[374503428,1753329035969,-460.0,0.00019178,2]
[374503430,1753329035979,-246.85015323,0.00019178,2]
[374503432,1753329035989,-460.0,0.00019178,2]
[374503434,1753329035999,-460.0,0.00019178,2]
[374503436,1753329036008,-584.04691873,0.00019178,2]
[374503438,1753329036017,-460.0,0.00019178,2]
[374503440,1753329036028,-460.0,0.00019178,2]
[374503442,1753329036037,-798.43,0.00019178,2]
[374503444,1753329036046,-460.0,0.00019178,2]
[374503446,1753329036056,-460.0,0.00019178,2]
[374503448,1753329036065,-460.0,0.00019178,2]
[374503450,1753329036075,-460.0,0.00019178,2]
[374503452,1753329036085,-460.0,0.00019178,2]
[374503454,1753329036094,-460.0,0.00019178,2]
[374503456,1753329036103,-460.0,0.00019178,2]
[374503458,1753329036113,-782.87567899,0.00019178,2]
[374503811,1753329039939,-743.79432101,0.00019178,2]
[374503813,1753329039948,-460.0,0.00019178,2]
[374503815,1753329039959,-460.0,0.00019178,2]
[374503817,1753329039968,-460.0,0.00019178,2]
[374503819,1753329039978,-460.0,0.00019178,2]
[374503821,1753329039987,-460.0,0.00019178,2]
[374503823,1753329039996,-460.0,0.00019178,2]
[374503825,1753329040007,-460.0,0.00019178,2]
[374503827,1753329040017,-462.05508425,0.00019178,2]
[374503829,1753329040029,-460.0,0.00019178,2]
[374503831,1753329040038,-2182.73696296,0.00019178,2]
[374503833,1753329040051,-2344.78303704,0.00019178,2]
[374503835,1753329040060,-460.0,0.00019178,2]
[374503837,1753329040070,-460.0,0.00019178,2]
[374503839,1753329040080,-472.35810222,0.00019178,2]
[374503841,1753329040090,-460.0,0.00019178,2]
[374503843,1753329040099,-460.0,0.00019178,2]
[374503846,1753329040109,-460.0,0.00019178,2]
[374503848,1753329040119,-460.0,0.00019178,2]
[374503850,1753329040128,-460.0,0.00019178,2]
[374503852,1753329040138,-2086.31,0.00019178,2]
[374503854,1753329040147,-779.11,0.00019178,2]
[374503856,1753329040157,-460.0,0.00019178,2]
[374503858,1753329040166,-461.74978468,0.00019178,2]
[374503860,1753329040175,-460.0,0.00019178,2]
[374503862,1753329040185,-460.0,0.00019178,2]
[374503864,1753329040195,-460.0,0.00019178,2]
[374503866,1753329040205,-460.0,0.00019178,2]
[374503868,1753329040215,-460.0,0.00019178,2]
[374503870,1753329040225,-460.0,0.00019178,2]
[374503872,1753329040234,-460.0,0.00019178,2]
[374503874,1753329040244,-460.0,0.00019178,2]
[374503876,1753329040254,-460.0,0.00019178,2]
[374503878,1753329040263,-460.0,0.00019178,2]
[374503880,1753329040273,-460.0,0.00019178,2]
[374503882,1753329040286,-460.0,0.00019178,2]
[374503883,1753329040295,-460.0,0.00019178,2]
[374503885,1753329040305,-460.0,0.00019178,2]
[374503888,1753329040314,-460.0,0.00019178,2]
[374503889,1753329040324,-1360.38,0.00019178,2]
[374503891,1753329040333,-460.0,0.00019178,2]
[374503893,1753329040343,-460.0,0.00019178,2]
[374503895,1753329040352,-460.0,0.00019178,2]
[374503897,1753329040362,-460.0,0.00019178,2]
[374503899,1753329040373,-460.0,0.00019178,2]
[374503901,1753329040382,-460.0,0.00019178,2]
[374503903,1753329040392,-460.0,0.00019178,2]
[374503905,1753329040401,-467.56866241,0.00019178,2]
[374503907,1753329040411,-109.16244215,0.00019178,2]
[374503910,1753329040423,-350.83755785,0.00019178,2]
[374503912,1753329040432,-460.0,0.00019178,2]
[374503914,1753329040442,-460.0,0.00019178,2]
[374503916,1753329040451,-460.0,0.00019178,2]
[374503918,1753329040461,-460.0,0.00019178,2]
[374503920,1753329040470,-894.56,0.00019178,2]
[374503921,1753329040479,-460.0,0.00019178,2]
[374503923,1753329040488,-467.08250855,0.00019178,2]
[374503925,1753329040498,-543.18304701,0.00019178,2]
[374503927,1753329040508,-460.0,0.00019178,2]
[374503929,1753329040517,-460.0,0.00019178,2]
[374503931,1753329040528,-5.24710084,0.00019178,2]
[374503946,1753329040655,-584.56289916,0.00019178,2]
[374503948,1753329040664,-460.89190463,0.00019178,2]
[374503950,1753329040674,-462.20566043,0.00019178,2]
[374503952,1753329040683,-183.08693074,0.00019178,2]
[374503955,1753329040700,-278.69422962,0.00019178,2]
[374503957,1753329040709,-460.0,0.00019178,2]
[374503959,1753329040718,-460.0,0.00019178,2]
[374503961,1753329040728,-465.66257263,0.00019178,2]
[374503963,1753329040737,-460.0,0.00019178,2]
[374503965,1753329040747,-460.0,0.00019178,2]
[374503967,1753329040757,-460.0,0.00019178,2]
[374503969,1753329040766,-488.02,0.00019178,2]
[374503971,1753329040775,-460.0,0.00019178,2]
[374503973,1753329040784,-460.0,0.00019178,2]
[374503975,1753329040793,-460.0,0.00019178,2]
[374503976,1753329040802,-460.0,0.00019178,2]
[374503978,1753329040811,-460.0,0.00019178,2]
[374503980,1753329040820,-460.0,0.00019178,2]
[374503982,1753329040830,-465.25,0.00019178,2]
[374503984,1753329040840,-512.06246196,0.00019178,2]
[374503986,1753329040850,-1392.92,0.00019178,2]
[374503988,1753329040860,-466.14026298,0.00019178,2]
[374503990,1753329040870,-460.0,0.00019178,2]
[374503992,1753329040879,-5242.19,0.00019178,2]
[374503994,1753329040892,-460.0,0.00019178,2]
[374503996,1753329040902,-460.0,0.00019178,2]
[374503998,1753329040912,-462.87783646,0.00019178,2]
[374504000,1753329040921,-460.0,0.00019178,2]
[374504002,1753329040931,-460.0,0.00019178,2]
[374504004,1753329040940,-579.57,0.00019178,2]
[374504006,1753329040949,-460.0,0.00019178,2]
[374504008,1753329040958,-460.0,0.00019178,2]
[374504010,1753329040968,-460.0,0.00019178,2]
[374504012,1753329040979,-462.83367863,0.00019178,2]
[374504014,1753329040989,-1989.65,0.00019178,2]
[374504016,1753329040999,-553.41,0.00019178,2]
[374504018,1753329041009,-460.0,0.00019178,2]
[374504020,1753329041019,-1562.25,0.00019178,2]
[374504022,1753329041031,-460.0,0.00019178,2]
[374504024,1753329041041,-460.0,0.00019178,2]
[374504026,1753329041051,-1538.53,0.00019178,2]
[374504028,1753329041060,-460.0,0.00019178,2]
[374504030,1753329041070,-460.0,0.00019178,2]
[374504032,1753329041079,-460.0,0.00019178,2]
[374504034,1753329041089,-460.0,0.00019178,2]
[374504036,1753329041099,-460.0,0.00019178,2]
[374504038,1753329041108,-460.0,0.00019178,2]
[374504040,1753329041117,-498.79196115,0.00019178,2]
[374504042,1753329041127,-460.0,0.00019178,2]
[374504044,1753329041137,-828.63,0.00019178,2]
[374504046,1753329041146,-465.07706111,0.00019178,2]
[374504048,1753329041156,-443.61684811,0.00019178,2]
[374504050,1753329041166,-460.0,0.00019178,2]
[374504052,1753329041175,-460.0,0.00019178,2]
[374504054,1753329041185,-460.0,0.00019178,2]
[374504056,1753329041195,-461.13877449,0.00019178,2]
[374504058,1753329041204,-460.0,0.00019178,2]
[374504060,1753329041214,-460.0,0.00019178,2]
[374504062,1753329041223,-460.0,0.00019178,2]
[374504064,1753329041233,-200.0,0.00019178,10]
[374504066,1753329041242,-460.0,0.00019178,2]
[374504068,1753329041252,-200.0,0.00019178,10]
[374504070,1753329041261,-465.21789101,0.00019178,2]
[374504072,1753329041271,-200.0,0.00019178,10]
[374504074,1753329041285,-200.0,0.00019178,10]
[374504075,1753329041295,-200.0,0.00019178,10]
[374504076,1753329041305,-200.0,0.00019178,10]
[374504077,1753329041314,-200.0,0.00019178,10]
[374504078,1753329041324,-200.0,0.00019178,10]
[374504079,1753329041334,-461.70183694,0.00019178,2]
[374504080,1753329041343,-247.078909,0.00019178,10]
[374504081,1753329041353,-500.0,0.00019178,2]
[374504082,1753329041362,-460.0,0.00019178,2]
[374504083,1753329041372,-460.0,0.00019178,2]
[374504084,1753329041381,-460.0,0.00019178,2]
[374504085,1753329041390,-460.0,0.00019178,2]
[374504086,1753329041400,-688.32,0.00019178,2]
[374504087,1753329041411,-565.89945521,0.00019178,2]